bitfinex-derivatives/quotes_SOLF0:USTF0_20251018
["timestamp","ask_amount","ask_price","bid_price","bid_amount"]
[1760792052838,2.62,185.99,185.93,2.85472767]
[1760792053038,60.13509151,186.07,185.94,45.31559705]
[1760792053239,2.62,186.05,185.94,0.93559705]
[1760792053439,4.28769976,186.06,185.94,0.93559705]
[1760792053440,2.62,186.03,185.95,44.38]
[1760792053735,4.8381,185.98,185.95,44.38]
[1760792053945,2.62,186.03,185.91,15.10871]
[1760792054141,2.85472767,186.01,185.91,16.04444541]
[1760792054336,2.62,185.99,185.91,16.04444541]
[1760792054535,2.85472767,186.01,185.91,15.10871]
[1760792054739,2.62,185.99,185.91,15.10871]
[1760792054939,2.62,186.0,185.91,15.10871]
[1760792056246,2.61,185.94,185.91,15.10871]
[1760792057346,4.839,185.95,185.91,15.10871]
[1760792057549,7.449,185.95,185.91,15.10871]
[1760792057846,2.61,185.94,185.91,15.10871]
[1760792058845,4.839,185.95,185.91,15.10871]
[1760792059139,4.839,185.95,185.91,17.96343767]
[1760792059544,5.01394594,186.05,185.94,2.85472767]
[1760792059742,61.9381179,186.07,185.94,2.85472767]
[1760792059743,6.92352572,186.04,185.94,2.85472767]
[1760792059944,6.92352572,186.04,185.97,2.85472767]
[1760792059945,2.61,186.04,185.97,2.85472767]
[1760792060147,4.8369,186.02,185.98,44.38]
[1760792061044,7.4474,186.01,185.98,44.42]
[1760792061749,7.4476,186.0,185.98,44.42]
[1760792062139,4.8376,186.0,185.98,44.42]
[1760792068556,4.8376,186.0,185.97,2.85472767]
[1760792068854,4.8376,186.0,185.98,44.42]
[1760792071356,4.8376,186.0,185.97,2.85472767]
[1760792071555,4.8376,186.0,185.99,44.4]
[1760792071751,4.8376,186.0,185.97,2.85472767]
[1760792071955,4.8376,186.0,185.98,44.4]
[1760792073957,4.8376,186.0,185.97,2.85472767]
[1760792074153,4.8376,186.0,185.98,44.4]
[1760792077259,5.46472767,186.06,185.93,64.85472767]
[1760792077457,2.61,186.02,185.94,44.42]
[1760792077662,2.61,186.0,185.94,44.42]
[1760792077859,2.61,185.98,185.94,44.42]
[1760792078161,4.8387,185.95,185.94,44.42]
[1760792078362,2.85472767,186.0,185.91,15.10871]
[1760792078557,2.61,185.98,185.91,59.52871]
[1760792078762,2.61,185.96,185.91,59.52871]
[1760792078963,2.85472767,186.0,185.91,59.52871]
[1760792079264,2.61,185.98,185.91,59.52871]
[1760792079462,4.32154855,185.97,185.91,59.52871]
[1760792079668,2.61,185.98,185.91,59.52871]
[1760792079855,4.32270676,185.97,185.91,59.52871]
[1760792080166,4.8395,185.93,185.91,59.52871]
[1760792086576,4.3327506,185.92,185.91,15.10871]
[1760792086779,4.3327506,185.92,185.91,59.50871]
[1760792087181,4.8395,185.93,185.91,59.50871]
[1760792093379,4.8388,185.95,185.91,59.50871]
[1760792093886,4.8388,185.95,185.93,2.85472767]
[1760792094082,4.8388,185.95,185.94,44.4]
[1760792095582,4.8388,185.95,185.94,46.23077933]
[1760792097779,4.8383,185.97,185.94,46.23077933]
[1760792098286,4.8383,185.97,185.96,1.83077933]
[1760792099386,4.8383,185.97,185.94,46.23077933]
[1760792100284,4.8386,185.96,185.94,1.83077933]
[1760792100492,7.5686,185.96,185.95,44.4]
[1760792100887,4.8386,185.96,185.94,1.83077933]
[1760792101089,2.73,185.95,185.94,46.23077933]
[1760792101291,2.73,185.95,185.94,44.4]
[1760792102084,4.8386,185.96,185.94,44.4]
[1760792102890,7.5686,185.96,185.94,44.4]
[1760792104093,4.8391,185.94,185.92,1.83077933]
[1760792104393,4.8391,185.94,185.93,44.42]
[1760792104593,2.73,185.96,185.93,44.42]
[1760792104594,4.8386,185.96,185.93,44.42]
[1760792104796,4.8386,185.96,185.95,1.83077933]
[1760792106596,4.839,185.95,185.93,46.25077933]
[1760792108093,4.839,185.95,185.94,44.42]
[1760792108698,4.839,185.95,185.94,46.25077933]
[1760792109892,4.8382,185.97,185.94,46.25077933]
[1760792110099,4.8382,185.97,185.96,1.83077933]
[1760792112096,9.18234482,185.97,185.96,1.83077933]
[1760792113506,4.8378,185.99,185.96,1.83077933]
[1760792113705,4.8378,185.99,185.98,1.83077933]
[1760792114200,4.8372,186.01,185.98,1.83077933]
[1760792114399,4.8372,186.01,186.0,1.83077933]
[1760792114595,9.18339173,186.01,186.0,46.23077933]
[1760792117502,9.15749164,186.01,186.0,46.23077933]
[1760792120405,4.8377,185.99,185.98,1.83077933]
[1760792120611,7.6377,185.99,185.98,46.23077933]
[1760792120910,4.8377,185.99,185.98,1.83077933]
[1760792121209,7.6377,185.99,185.98,44.4]
[1760792121809,4.8377,185.99,185.98,44.4]
[1760792123012,1.83077933,186.06,185.95,1.83077933]
[1760792123013,4.8385,185.96,185.95,1.83077933]
[1760792123410,4.8385,185.96,185.95,46.23077933]
[1760792123607,4.8385,185.96,185.95,44.4]
[1760792124406,4.839,185.94,185.93,1.83077933]
[1760792124609,4.839,185.94,185.93,46.23077933]
[1760792125114,4.839,185.94,185.93,1.83077933]
[1760792130710,7.639,185.94,185.93,1.83077933]
[1760792130912,2.8,185.93,185.92,44.4]
[1760792133914,2.8,185.93,185.91,16.93948933]
[1760792134120,7.6394,185.93,185.92,44.4]
[1760792136217,4.8394,185.93,185.92,44.4]
[1760792137819,4.8394,185.93,185.91,16.93948933]
[1760792138020,4.8394,185.93,185.92,44.4]
[1760792138824,7.79887439,185.99,185.92,44.4]
[1760792139014,4.31165381,185.98,185.97,1.83077933]
[1760792139218,4.31165381,185.98,185.97,46.23077933]
[1760792139622,4.8379,185.99,185.97,46.23077933]
[1760792139820,4.8379,185.99,185.98,1.83077933]
[1760792140022,9.15028859,185.99,185.98,1.83077933]
[1760792141618,4.8379,185.99,185.98,1.83077933]
[1760792141919,7.6373,186.01,185.98,1.83077933]
[1760792142226,4.31199867,186.0,185.98,1.83077933]
[1760792142426,7.6373,186.01,185.98,1.83077933]
[1760792142717,4.31212489,186.0,185.98,1.83077933]
[1760792142922,4.8373,186.01,185.98,1.83077933]
[1760792143122,4.8373,186.01,186.0,1.83077933]
[1760792143916,7.6373,186.01,186.0,1.83077933]
[1760792144320,7.6373,186.01,186.0,46.23077933]
[1760792145520,4.8373,186.01,186.0,46.23077933]
[1760792149939,7.5973,186.01,186.0,46.23077933]
[1760792150235,4.8373,186.01,186.0,46.23077933]
[1760792152146,4.8373,186.01,186.0,44.4]
[1760792154847,11.90147745,186.01,186.0,44.4]
[1760792155344,9.14147745,186.01,186.0,44.4]
[1760792156041,4.8373,186.01,186.0,44.4]
[1760792164159,4.8376,186.0,185.95,2.8589289]
[1760792164358,4.8376,186.0,185.96,44.4]
[1760792165758,4.8378,185.99,185.96,44.4]
[1760792167055,4.8378,185.99,185.95,2.8589289]
[1760792167056,7.6678,185.99,185.97,44.4]
[1760792169360,2.83,185.98,185.97,44.4]
[1760792169961,7.6678,185.99,185.97,44.4]
[1760792172263,4.8378,185.99,185.97,44.4]
[1760792172664,4.30585978,185.98,185.97,44.4]
[1760792173765,4.8378,185.99,185.97,44.4]
[1760792175460,2.83,185.98,185.97,44.4]
[1760792177468,4.8378,185.99,185.97,44.4]
[1760792177768,7.6178,185.99,185.97,44.4]
[1760792180864,4.8378,185.99,185.97,44.4]
[1760792181173,4.30819117,185.98,185.97,44.4]
[1760792182465,4.8378,185.99,185.97,44.4]
[1760792182666,19.04571282,186.05,185.98,2.8589289]
[1760792182667,4.8372,186.01,185.98,2.8589289]
[1760792182868,4.31032691,186.0,185.98,2.8589289]
[1760792183067,4.8372,186.01,185.98,2.8589289]
[1760792183370,4.31212068,186.0,185.98,2.8589289]
[1760792183569,4.8372,186.01,185.98,2.8589289]
[1760792184165,4.2989925,186.0,185.98,2.8589289]
[1760792184467,4.8372,186.01,185.98,2.8589289]
[1760792184666,4.29906591,186.0,185.98,2.8589289]
[1760792184867,4.8372,186.01,185.98,2.8589289]
[1760792185065,4.29886531,186.0,185.98,2.8589289]
[1760792185265,4.8372,186.01,185.98,2.8589289]
[1760792185462,4.29892543,186.0,185.98,2.8589289]
[1760792185666,4.8372,186.01,185.98,2.8589289]
[1760792185973,4.29902746,186.0,185.98,2.8589289]
[1760792186169,4.8375,186.0,185.98,2.8589289]
[1760792186369,7.6175,186.0,185.99,44.4]
[1760792186563,11.91610474,186.0,185.99,44.4]
[1760792188572,9.13610474,186.0,185.99,44.4]
[1760792189978,11.91610474,186.0,185.99,44.4]
[1760792190881,9.13610474,186.0,185.99,44.4]
[1760792194482,11.91610474,186.0,185.99,44.4]
[1760792199789,9.13610474,186.0,185.99,44.4]
[1760792199982,4.8379,185.99,185.95,44.4]
[1760792201690,4.30132001,185.98,185.95,44.4]
[1760792201887,4.8379,185.99,185.95,44.4]
[1760792202087,4.30131432,185.98,185.95,44.4]
[1760792202286,4.8379,185.99,185.95,44.4]
[1760792202483,4.30139942,185.98,185.95,44.4]
[1760792202788,4.8379,185.99,185.95,44.4]
[1760792202988,4.3014003,185.98,185.95,44.4]
[1760792203288,4.838,185.98,185.95,44.4]
[1760792205392,4.8374,186.0,185.95,44.4]
[1760792205586,4.8374,186.0,185.97,2.8589289]
[1760792207694,4.8374,186.0,185.98,44.4]
[1760792211298,4.8374,186.0,185.97,2.8589289]
[1760792211592,6.97666965,185.99,185.98,44.4]
[1760792212394,4.28666965,185.99,185.98,44.4]
[1760792212997,6.97666965,185.99,185.98,44.4]
[1760792218898,6.97666965,185.99,185.93,2.8589289]
[1760792219102,4.28666965,185.98,185.94,44.38]
[1760792219298,2.69,185.99,185.94,44.38]
[1760792219503,4.28905549,185.98,185.95,1.83067668]
[1760792219703,2.69,185.99,185.95,1.83067668]
[1760792219904,4.28906005,185.98,185.95,1.83067668]
[1760792220100,4.8383,185.97,185.95,1.83067668]
[1760792223911,4.8378,185.99,185.95,1.83067668]
[1760792224107,4.8378,185.99,185.97,1.83067668]
[1760792224613,4.8378,185.99,185.98,44.4]
[1760792224812,9.12638832,185.99,185.98,44.4]
[1760792230110,7.6779,185.98,185.96,44.38]
[1760792230408,7.12858832,185.97,185.96,44.38]
[1760792230614,4.28858832,185.97,185.96,44.38]
[1760792231714,4.8379,185.98,185.96,44.38]
[1760792233014,4.8375,186.0,185.97,1.83067668]
[1760792233209,4.28876974,185.99,185.97,1.83067668]
[1760792233513,4.8375,186.0,185.97,1.83067668]
[1760792234910,4.8375,186.0,185.99,1.83067668]
[1760792235112,4.28847975,186.0,185.99,1.83067668]
[1760792235312,4.8369,186.02,185.99,1.83067668]
[1760792235512,4.28841643,186.01,186.0,44.38]
[1760792236317,4.8369,186.02,186.0,44.38]
[1760792236516,4.8369,186.02,186.01,1.83067668]
[1760792236716,9.12005987,186.02,186.01,1.83067668]
[1760792237322,4.28315987,186.02,186.01,1.83067668]
[1760792237518,4.8364,186.04,186.01,1.83067668]
[1760792237824,4.8364,186.04,186.0,44.38]
[1760792237825,4.28354705,186.03,186.0,44.38]
[1760792238119,4.8364,186.04,186.0,44.38]
[1760792238319,4.28350692,186.03,186.0,44.38]
[1760792238521,4.8364,186.04,186.0,44.38]
[1760792238721,4.28251221,186.03,186.0,44.38]
[1760792238922,4.8364,186.04,186.02,1.83067668]
[1760792239110,2.77,186.06,186.02,1.83067668]
[1760792239111,7.6059,186.06,186.02,1.83067668]
[1760792239316,4.28268578,186.05,186.02,1.83067668]
[1760792239619,2.77,186.05,186.02,1.83067668]
[1760792240312,4.8359,186.06,186.04,1.83067668]
[1760792240517,4.28085239,186.05,186.04,1.83067668]
[1760792240919,4.99887439,186.11,186.04,1.83067668]
[1760792241214,4.28063141,186.1,186.07,1.83067668]
[1760792241421,7.6042,186.12,186.09,1.83067668]
[1760792241612,4.27765997,186.11,186.09,1.83067668]
[1760792241815,4.27765997,186.1,186.09,1.83067668]
[1760792242217,4.8341,186.13,186.09,1.83067668]
[1760792242420,4.22886508,186.12,186.09,1.83067668]
[1760792242617,7.6041,186.13,186.09,1.83067668]
[1760792242817,4.22571297,186.12,186.1,44.38]
[1760792243017,4.8341,186.13,186.1,44.38]
[1760792243222,4.22571203,186.12,186.1,44.38]
[1760792243423,7.6041,186.13,186.1,44.38]
[1760792243724,4.22307849,186.12,186.1,44.38]
[1760792243913,7.6041,186.13,186.1,44.38]
[1760792244119,4.22312896,186.12,186.1,44.38]
[1760792244423,7.6041,186.13,186.1,44.38]
[1760792244620,4.99887439,186.17,186.11,1.83067668]
[1760792244817,2.77,186.15,186.1,44.38]
[1760792245013,2.77,186.13,186.1,44.38]
[1760792245213,1.83067668,186.18,186.1,44.38]
[1760792245416,2.77,186.16,186.09,1.83067668]
[1760792245616,4.21823718,186.15,186.1,43.9]
[1760792245817,2.77,186.13,186.1,43.9]
[1760792246218,2.77,186.15,186.1,44.38]
[1760792246424,4.21801287,186.14,186.1,44.38]
[1760792246724,2.77,186.15,186.1,44.38]
[1760792246917,2.77,186.13,186.1,44.38]
[1760792247120,7.6041,186.13,186.1,44.38]
[1760792250827,4.8341,186.13,186.1,44.38]
[1760792252028,7.6041,186.13,186.1,44.38]
[1760792252930,4.8341,186.13,186.09,1.83067668]
[1760792253325,4.8341,186.13,186.1,44.36]
[1760792253528,4.8341,186.13,186.11,44.36]
[1760792253728,4.8341,186.13,186.12,44.36]
[1760792253928,4.8341,186.13,186.09,1.83067668]
[1760792254126,4.8341,186.13,186.1,44.36]
[1760792254426,4.8341,186.13,186.11,44.36]
[1760792254627,4.8341,186.13,186.09,1.83067668]
[1760792254823,4.8341,186.13,186.1,44.36]
[1760792255031,4.8341,186.13,186.09,1.83067668]
[1760792255229,7.6041,186.13,186.1,46.19067668]
[1760792255430,7.6041,186.13,186.1,1.83067668]
[1760792256033,7.6041,186.13,186.11,44.36]
[1760792256231,4.8341,186.13,186.1,1.83067668]
[1760792256630,2.77,186.22,186.05,62.0]
[1760792256827,2.77,186.2,186.12,1.83067668]
[1760792257331,7.603,186.17,186.14,1.83067668]
[1760792257928,7.603,186.17,186.15,44.36]
[1760792258537,7.603,186.17,186.14,1.83067668]
[1760792259035,4.833,186.17,186.15,44.36]
[1760792259236,4.833,186.17,186.14,1.83067668]
[1760792259436,7.603,186.17,186.15,44.36]
[1760792259630,1.83067668,186.22,186.14,1.83067668]
[1760792259631,4.8333,186.16,186.14,1.83067668]
[1760792259932,2.77,186.15,186.14,44.36]
[1760792260136,4.8333,186.16,186.14,44.36]
[1760792260334,4.8333,186.16,186.08,4.8352]
[1760792260536,7.6033,186.16,186.12,1.83067668]
[1760792261239,7.6033,186.16,186.13,44.36]
[1760792261434,7.6033,186.16,186.12,1.83067668]
[1760792261633,7.6033,186.16,186.13,44.36]
[1760792261837,7.6033,186.16,186.12,1.83067668]
[1760792262234,7.6033,186.16,186.13,44.36]
[1760792262434,7.6033,186.16,186.12,1.83067668]
[1760792264136,2.77,186.14,186.1,46.19067668]
[1760792264342,2.77,186.13,186.1,1.83067668]
[1760792264541,2.77,186.13,186.1,46.19067668]
[1760792265136,4.8335,186.15,186.12,1.83067668]
[1760792265840,4.8335,186.15,186.12,46.19067668]
[1760792266137,4.8335,186.15,186.12,1.83067668]
[1760792266343,4.8335,186.15,186.12,46.17067668]
[1760792266640,4.8335,186.15,186.12,1.83067668]
[1760792266836,7.6535,186.15,186.12,1.83067668]
[1760792267337,2.82,186.14,186.12,1.83067668]
[1760792267535,1.83067668,186.18,186.05,62.0]
[1760792267843,1.83067668,186.16,186.07,1.83067668]
[1760792268042,1.83067668,186.16,186.07,46.17067668]
[1760792268242,2.82,186.15,186.07,44.34]
[1760792268433,1.83067668,186.16,186.07,46.17067668]
[1760792268638,2.82,186.15,186.07,1.83067668]
[1760792268942,2.82,186.15,186.09,1.83067668]
[1760792270037,7.6544,186.12,186.09,1.83067668]
[1760792270235,4.8344,186.12,186.09,1.83067668]
[1760792270834,4.8344,186.12,186.09,46.19067668]
[1760792271044,4.8344,186.12,186.09,1.83067668]
[1760792271543,4.8344,186.12,186.09,46.19067668]
[1760792272344,4.8344,186.12,186.09,1.83067668]
[1760792273446,7.6538,186.14,186.09,1.83067668]
[1760792273946,7.6538,186.14,186.11,1.83067668]
[1760792274448,2.82,186.13,186.11,1.83067668]
[1760792274940,2.82,186.12,186.1,46.19067668]
[1760792275141,2.82,186.12,186.1,1.83067668]
[1760792277037,4.8343,186.12,186.1,1.83067668]
[1760792277245,1.83067668,186.18,186.08,1.83067668]
[1760792277246,2.82,186.15,186.08,1.83067668]
[1760792277443,2.82,186.13,186.08,1.83067668]
[1760792278043,1.83067668,186.16,186.08,1.83067668]
[1760792278245,7.01712052,186.15,186.08,1.83067668]
[1760792278448,4.19712052,186.14,186.08,1.83067668]
[1760792278753,2.82,186.12,186.08,1.83067668]
[1760792278944,4.8349,186.1,186.08,1.83067668]
[1760792279148,7.6549,186.1,186.08,1.83067668]
[1760792279453,7.6549,186.1,186.06,20.12]
[1760792279650,7.6549,186.1,186.05,2.85673419]
[1760792279856,7.6549,186.1,186.06,26.84]
[1760792280050,7.6549,186.1,186.06,44.36]
[1760792280250,7.6549,186.1,186.05,2.85673419]
[1760792280445,9.71543425,186.16,185.94,2.85673419]
[1760792280653,19.5953073,186.15,186.02,2.85673419]
[1760792280848,2.82,186.13,186.02,2.85673419]
[1760792281053,4.8356,186.07,186.02,2.85673419]
[1760792281258,7.6556,186.07,186.02,2.85673419]
[1760792281657,4.8356,186.07,186.02,2.85673419]
[1760792281858,7.6556,186.07,186.02,2.85673419]
[1760792282255,4.8356,186.07,186.03,44.36]
[1760792282461,2.82,186.06,186.03,44.36]
[1760792282855,4.8356,186.07,186.02,2.85673419]
[1760792283258,7.6556,186.07,186.02,2.85673419]
[1760792283454,7.6556,186.07,186.03,106.36]
[1760792283756,4.8356,186.07,186.03,106.36]
[1760792283962,2.82,186.12,186.02,2.85673419]
[1760792284156,2.82,186.1,186.02,47.21673419]
[1760792284363,2.82,186.08,186.02,2.85673419]
[1760792284559,4.20884199,186.07,186.01,44.36]
[1760792284751,2.82,186.1,185.99,2.85673419]
[1760792284958,2.82,186.08,185.99,2.85673419]
[1760792285158,2.82,186.06,185.99,2.85673419]
[1760792285457,4.837,186.02,185.99,2.85673419]
[1760792285663,7.657,186.02,185.99,2.85673419]
[1760792286559,2.82,186.01,185.99,2.85673419]
[1760792286761,7.65457593,186.08,185.97,0.93486816]
[1760792287063,2.7,186.06,185.97,0.93486816]
[1760792287263,2.7,186.04,185.97,0.93486816]
[1760792287663,2.7,186.02,185.97,0.93486816]
[1760792287864,2.85673419,186.06,185.95,44.38]
[1760792288061,2.7,186.04,185.95,44.38]
[1760792288261,2.7,186.02,185.95,44.38]
[1760792288467,2.85673419,186.06,185.94,45.3156222]
[1760792288664,7.5381,185.98,185.94,45.3156222]
[1760792289166,7.5381,185.98,185.94,0.9356222]
[1760792289361,7.5381,185.98,185.94,45.3156222]
[1760792289567,7.5381,185.98,185.94,0.9356222]
[1760792289763,7.5381,185.98,185.94,45.3156222]
[1760792289964,7.5381,185.98,185.94,0.9356222]
[1760792290167,7.5381,185.98,185.94,45.3156222]
[1760792290563,7.5381,185.98,185.94,0.9356222]
[1760792290764,2.7,185.97,185.94,45.3156222]
[1760792290964,2.7,185.97,185.94,0.9356222]
[1760792291169,2.7,185.97,185.94,45.3156222]
[1760792291366,2.7,185.97,185.95,44.38]
[1760792291668,2.7,185.97,185.94,0.9356222]
[1760792291863,2.7,185.97,185.95,44.38]
[1760792292060,2.7,185.97,185.94,0.9356222]
[1760792292670,2.7,185.97,185.95,44.38]
[1760792292864,4.8381,185.98,185.95,44.38]
[1760792293065,7.5381,185.98,185.94,0.9356222]
[1760792293271,7.5381,185.98,185.95,44.38]
[1760792293665,7.5381,185.98,185.94,0.9356222]
[1760792294071,7.5381,185.98,185.95,44.38]
[1760792294369,7.5381,185.98,185.94,0.9356222]
[1760792294370,7.5381,185.98,185.96,44.38]
[1760792294570,2.7,185.97,185.96,44.38]
[1760792294766,2.7,185.97,185.94,0.9356222]
[1760792294968,2.7,185.97,185.95,44.38]
[1760792295167,2.7,185.97,185.94,0.9356222]
[1760792295668,4.8381,185.98,185.94,0.9356222]
[1760792295864,2.7,185.97,185.94,0.9356222]
[1760792296072,2.7,185.97,185.95,44.38]
[1760792296368,2.7,185.97,185.94,0.9356222]
[1760792297673,2.7,185.97,185.95,44.38]
[1760792297870,2.7,185.97,185.94,0.9356222]
[1760792298270,4.8381,185.98,185.95,44.38]
[1760792298674,4.8381,185.98,185.94,0.9356222]
[1760792298872,4.8381,185.98,185.95,44.38]
[1760792299172,4.8381,185.98,185.94,0.9356222]
[1760792299575,4.8381,185.98,185.95,44.38]
[1760792299873,4.8381,185.98,185.94,0.9356222]
[1760792300074,4.8381,185.98,185.95,44.38]
[1760792300374,4.8381,185.98,185.94,0.9356222]
[1760792300764,2.7,185.97,185.94,0.9356222]
[1760792301170,2.7,185.97,185.95,44.38]
[1760792301773,2.7,185.97,185.96,44.38]
[1760792301966,2.7,185.97,185.94,0.9356222]
[1760792302168,2.7,185.97,185.95,44.38]
[1760792302373,2.7,185.97,185.94,0.9356222]
[1760792302677,2.7,185.97,185.95,44.38]
[1760792302870,2.7,185.97,185.94,0.9356222]
[1760792303070,2.7,185.97,185.95,44.38]
[1760792303274,2.7,185.97,185.94,0.9356222]
[1760792303974,2.7,185.97,185.95,44.38]
[1760792304175,2.7,185.97,185.94,0.9356222]
[1760792306078,2.7,185.97,185.95,44.38]
[1760792306277,2.7,185.97,185.94,0.9356222]
[1760792306978,2.7,185.97,185.95,44.38]
[1760792307276,2.7,185.97,185.94,0.9356222]
[1760792307277,2.7,185.97,185.96,44.38]
[1760792307673,4.8383,185.96,185.94,0.9356222]
[1760792307883,2.7,185.95,185.94,0.9356222]
[1760792308181,2.7,185.95,185.94,45.3156222]
[1760792308374,2.7,185.95,185.94,0.9356222]
[1760792308581,2.7,185.95,185.94,45.3156222]
[1760792308781,2.7,185.95,185.94,0.9356222]
[1760792308982,2.7,185.95,185.94,45.3156222]
[1760792309675,2.7,185.95,185.94,0.9356222]
[1760792309979,2.7,185.95,185.94,45.3156222]
[1760792310382,2.7,185.95,185.94,0.9356222]
[1760792310584,2.7,185.95,185.94,45.3156222]
[1760792310885,2.7,185.95,185.94,0.9356222]
[1760792311386,2.7,185.95,185.94,45.3156222]
[1760792312085,7.5389,185.94,185.93,2.85673419]
[1760792312286,7.5389,185.94,185.93,47.23673419]
[1760792312587,4.8389,185.94,185.93,47.23673419]
[1760792312787,4.8389,185.94,185.93,2.85673419]
[1760792312987,4.8389,185.94,185.93,47.23673419]
[1760792313584,4.8389,185.94,185.93,2.85673419]
[1760792313785,4.8389,185.94,185.93,47.23673419]
[1760792314084,4.8389,185.94,185.93,2.85673419]
[1760792314285,7.5389,185.94,185.93,47.23673419]
[1760792315487,7.5389,185.94,185.93,2.85673419]
[1760792315992,4.8392,185.93,185.91,16.0445209]
[1760792316291,2.7,185.92,185.91,16.0445209]
[1760792317086,4.8392,185.93,185.91,16.0445209]
[1760792317483,4.8392,185.93,185.92,44.38]
[1760792317881,4.8392,185.93,185.91,16.0445209]
[1760792318087,4.8392,185.93,185.92,44.38]
[1760792318590,4.8392,185.93,185.91,16.0445209]
[1760792318791,4.8392,185.93,185.92,47.25673419]
[1760792319486,4.8387,185.95,185.92,47.25673419]
[1760792319680,2.7,186.0,185.92,47.25673419]
[1760792319884,2.7,186.01,185.95,2.85673419]
[1760792320080,9.6737,186.02,185.95,2.85673419]
[1760792320284,2.7,186.01,185.95,2.85673419]
[1760792320481,9.6737,186.02,185.96,44.4]
[1760792320691,2.7,186.01,185.97,44.4]
[1760792320891,2.7,186.01,185.95,2.85673419]
[1760792321095,2.7,186.01,185.96,44.4]
[1760792321490,9.6737,186.02,185.95,2.85673419]
[1760792321692,4.20339032,186.01,185.96,44.4]
[1760792321892,9.6737,186.02,185.96,44.4]
[1760792322094,6.90329331,186.01,185.95,2.85673419]
[1760792322290,2.7,186.05,185.96,44.4]
[1760792322592,2.7,186.03,185.97,44.4]
[1760792322789,4.8378,185.98,185.97,44.4]
[1760792323292,4.8378,185.98,185.95,2.85673419]
[1760792323494,4.8378,185.98,185.96,44.4]
[1760792323692,4.8378,185.98,185.97,44.4]
[1760792323887,4.8378,185.98,185.95,2.85673419]
[1760792324089,4.8378,185.98,185.96,44.4]
[1760792324284,4.8378,185.98,185.95,2.85673419]
[1760792324491,4.8378,185.98,185.96,44.4]
[1760792324690,4.8378,185.98,185.95,2.85673419]
[1760792324890,4.8382,185.97,185.95,2.85673419]
[1760792325286,4.8382,185.97,185.96,44.4]
[1760792326093,4.8382,185.97,185.95,2.85673419]
[1760792326298,4.8382,185.97,185.96,44.4]
[1760792326689,4.8382,185.97,185.95,2.85673419]
[1760792326894,4.8382,185.97,185.96,44.4]
[1760792329897,4.8382,185.97,185.95,2.85673419]
[1760792330102,4.8382,185.97,185.96,44.38]
[1760792332204,4.8382,185.97,185.95,2.85673419]
[1760792332400,4.8382,185.97,185.96,44.38]
[1760792332903,7.5782,185.97,185.96,44.38]
[1760792333404,4.8388,185.95,185.92,2.85673419]
[1760792333703,4.8388,185.95,185.93,44.38]
[1760792338105,4.8388,185.95,185.92,2.85673419]
[1760792338506,4.8388,185.95,185.93,44.38]
[1760792341409,4.8388,185.95,185.94,1.83083817]
[1760792344811,7.5788,185.95,185.94,1.83083817]
[1760792345205,4.8388,185.95,185.94,1.83083817]
[1760792346012,4.8388,185.95,185.94,46.21083817]
[1760792346511,7.6188,185.95,185.94,46.21083817]
[1760792351822,4.8388,185.95,185.94,46.21083817]
[1760792352225,4.8388,185.95,185.94,1.83083817]
[1760792352725,4.8388,185.95,185.94,46.21083817]
[1760792352925,4.8388,185.95,185.94,1.83083817]
[1760792354026,4.8388,185.95,185.94,46.21083817]
[1760792354425,4.8388,185.95,185.94,1.83083817]
[1760792354626,4.8388,185.95,185.94,46.21083817]
[1760792355731,4.8388,185.95,185.94,1.83083817]
[1760792356027,4.8388,185.95,185.94,46.21083817]
[1760792359231,4.8383,185.97,185.94,46.21083817]